[Event "OBEM 2018"]
[Site "Bremen"]
[Date "2018.03.31"]
[Round "9"]
[White "Issing, Peter"]
[Black "Stieglitz, Dirk"]
[Result "0-1"]
[ECO "D11"]
[WhiteElo "2196"]
[BlackElo "2052"]
[Annotator "RC"]
[PlyCount "92"]
[EventDate "2018.??.??"]
[EventType "swiss"]
[EventCountry "GER"]
[SourceTitle "playchess.com"]
[Source "ChessBase"]
[SourceQuality "1"]
[TimeControl "40/5400+30:1800+30"]

1. d4 {[%emt 0:00:00]} d5 {[%emt 0:00:08]} 2. c4 {[%emt 0:00:00]} c6 {[%emt 0:00:04]} 3. Nf3 {[%emt 0:00:00]} Nf6 {[%emt 0:00:06]} 4. Qc2 {[%emt 0:00:00]} dxc4 {[%emt 0:00:56]} 5. Qxc4 {[%emt 0:01:48]} Bg4 {[%emt 0:00:09]} 6. Nbd2 {[%emt 0:01:30]} Nbd7 {[%emt 0:01:16]} 7. g3 {[%emt 0:02:56]} e6 {[%emt 0:00:14]} 8. Bg2 {[%emt 0:00:10]} Be7 {[%emt 0:00:08]} 9. O-O {[%emt 0:08:34]} O-O {[%emt 0:00:45]} 10. Ne5 {[%emt 0:06:04]} Bh5 {[%emt 0:10:52]} 11. Ndf3 {[%emt 0:01:08]} a5 {[%emt 0:15:39]} 12. a4 {[%emt 0:04:13]} Qb6 {[%emt 0:03:19]} 13. Be3 {[%emt 0:02:25]} Qb4 {[%emt 0:04:39]} 14. Qd3 {[%emt 0:08:36]} Bxf3 {[%emt 0:03:30]} 15. Nxf3 {[%emt 0:01:44]} Nd5 {[%emt 0:00:47]} 16. Bd2 {[%emt 0:00:48]} Qb6 {[%emt 0:02:36]} 17. Rac1 {[%emt 0:05:48]} h6 {[%emt 0:04:06]} 18. Rfd1 {[%emt 0:07:37]} Rfd8 {[%emt 0:00:43]} 19. e4 {[%emt 0:02:02]} N5f6 {[%emt 0:03:49]} 20. Be3 {[%emt 0:02:14]} Qxb2 {[%emt 0:03:29]} 21. Rb1 {[%emt 0:01:52]} Qa3 {[%emt 0:00:39]} 22. Qxa3 {[%emt 0:03:32]} Bxa3 {[%emt 0:00:12]} 23. e5 {[%emt 0:00:45]} Nd5 {[%emt 0:02:07]} 24. Rxb7 {[%emt 0:01:39]} Nc3 {[%emt 0:13:58]} 25. Ra1 {[%emt 0:02:33]} Bb4 {[%emt 0:00:23]} 26. Ne1 {[%emt 0:01:34]} Rac8 {[%emt 0:00:38]} 27. Nd3 {[%emt 0:04:13]} c5 {[%emt 0:01:35]} 28. dxc5 {[%emt 0:04:38]} Nxc5 {[%emt 0:00:30]} 29. Rxb4 {[%emt 0:16:29]} Nxd3 {[%emt 0:02:39]} 30. Rb7 {[%emt 0:00:53]} Nc5 {[%emt 0:03:57]} 31. Ra7 {[%emt 0:01:24]} Nb3 {[%emt 0:04:47]} 32. Ra3 {[%emt 0:01:13]} Rd1+ {[%emt 0:03:37]} 33. Bf1 {[%emt 0:00:05]} Rb8 {[%emt 0:00:40]} 34. Kg2 {[%emt 0:00:57]} Nd5 {[%emt 0:06:38]} 35. Bb5 {[%emt 0:00:51]} Nxe3+ {[%emt 0:05:08]} 36. fxe3 {[%emt 0:00:02]} Rd2+ {[%emt 0:00:38]} 37. Kf3 {[%emt 0:03:08]} Rb2 {[%emt 0:01:22]} 38. Rd7 {[%emt 0:02:39]} Rc8 {[%emt 0:00:55]} 39. Rd3 {[%emt 0:01:39]} Nd2+ {[%emt 0:00:38]} 40. Kg4 {[%emt 0:01:14]} g6 {[%emt 0:31:19]} 41. Rac3 {[%emt 0:02:27]} h5+ {[%emt 0:00:00]} 42. Kh3 {[%emt 0:03:09]} Rxc3 {[%emt 0:00:00]} 43. Rxc3 {[%emt 0:00:02]} Nf3 {[%emt 0:00:00]} 44. g4 {[%emt 0:02:32]} h4 {[%emt 0:00:00]} 45. g5 {[%emt 0:01:21]} Rxh2+ {[%emt 0:00:00]} 46. Kg4 {[%emt 0:00:01]} Rf2 {[%emt 0:00:00]} 0-1

[Event "OBEM 2018"]
[Site "Bremen"]
[Date "2018.03.31"]
[Round "9"]
[White "Schulz, Daniel"]
[Black "Boehning, Kilian"]
[Result "1/2-1/2"]
[ECO "A81"]
[WhiteElo "2051"]
[BlackElo "2109"]
[Annotator "NA RC"]
[PlyCount "81"]
[EventDate "2018.??.??"]
[EventType "swiss"]
[EventCountry "GER"]
[SourceTitle "playchess.com"]
[Source "ChessBase"]
[SourceQuality "1"]
[TimeControl "40/5400+30:1800+30"]

1. d4 {[%emt 0:12:51]} f5 {[%emt 0:03:32]} 2. g3 {[%emt 0:00:22]} g6 {[%emt 0:00:09]} 3. Bg2 {[%emt 0:00:08]} Nf6 {[%emt 0:00:18]} 4. Nf3 {[%emt 0:00:09]} Bg7 {[%emt 0:00:07]} 5. O-O {[%emt 0:00:09]} O-O {[%emt 0:00:08]} 6. b3 {[%emt 0:00:47]} d6 {[%emt 0:03:23]} 7. Bb2 {[%emt 0:00:15]} Qe8 {[%emt 0:05:13]} 8. c4 {[%emt 0:09:56]} c6 {[%emt 0:05:25]} 9. Qc2 {[%emt 0:09:55]} a5 {[%emt 0:09:15]} 10. Nbd2 {[%emt 0:02:58]} Na6 {[%emt 0:04:39]} 11. a3 {[%emt 0:01:59]} c5 {[%emt 0:04:30]} 12. Bc3 {[%emt 0:01:23]} Nd7 {[%emt 0:25:07]} 13. d5 {[%emt 0:05:36]} Bxc3 {[%emt 0:07:28]} 14. Qxc3 {[%emt 0:01:12]} Nc7 {[%emt 0:01:39]} 15. a4 {[%emt 0:09:45]} Nf6 {[%emt 0:03:59]} 16. e4 {[%emt 0:12:24]} fxe4 {[%emt 0:03:00]} 17. Ng5 {[%emt 0:02:54]} h6 {[%emt 0:01:45]} 18. Ngxe4 {[%emt 0:00:32]} b6 {[%emt 0:01:36]} 19. Rae1 {[%emt 0:02:21]} Qf7 {[%emt 0:00:29]} 20. Re2 {[%emt 0:03:08]} Nce8 {[%emt 0:02:20]} 21. Rfe1 {[%emt 0:07:06]} Ra7 {[%emt 0:00:08]} 22. f3 {[%emt 0:01:55]} Ng7 {[%emt 0:01:42]} 23. Nxf6+ {[%emt 0:03:37]} exf6 {[%emt 0:00:47]} 24. g4 {[%emt 0:01:17]} Rc7 {[%emt 0:03:45]} 25. Qe3 {[%emt 0:03:04]} h5 {[%emt 0:03:45]} 26. h3 {[%emt 0:01:41]} f5 {[%emt 0:01:28]} 27. Qg5 {[%emt 0:01:20]} Qf6 {[%emt 0:01:03]} 28. Qxf6 {[%emt 0:03:41]} Rxf6 {[%emt 0:00:15]} 29. g5 {[%emt 0:00:25]} Rff7 {[%emt 0:01:29]} 30. f4 {[%emt 0:00:18]} Kf8 {[%emt 0:03:10]} 31. Nf3 {[%emt 0:00:35]} Rfe7 {[%emt 0:00:52]} 32. Nh4 {[%emt 0:00:54]} Rxe2 {[%emt 0:00:33]} 33. Rxe2 {[%emt 0:00:09]} Kf7 {[%emt 0:00:07]} 34. Kf2 {[%emt 0:01:25]} Bd7 {[%emt 0:00:48]} 35. Bf3 {[%emt 0:00:31]} Be8 {[%emt 0:00:51]} 36. Ng2 {[%emt 0:00:29]} Re7 {[%emt 0:00:44]} 37. Ne3 {[%emt 0:00:28]} Bd7 {[%emt 0:00:33]} 38. Kg3 {[%emt 0:00:36]} Rxe3 {[%emt 0:01:48]} 39. Rxe3 {[%emt 0:00:20]} Bc8 {[%emt 0:00:09]} 40. Kh4 {[%emt 0:00:46]} Bd7 {[%emt 0:30:45]} 41. Kg3 {[%emt 0:03:31]} 1/2-1/2